fUSD/lending_fUSD_20240214
["ID","MTS","AMOUNT","RATE_DAILY","PERIOD"]
[314016135,1707923558714,-500.0,0.00041095,30]
[314016136,1707923558723,-500.0,0.00041095,30]
[314016137,1707923558732,-1377.65,0.00041095,7]
[314016138,1707923558741,-500.0,0.00041095,30]
[314016139,1707923558750,-500.0,0.00041095,30]
[314016140,1707923558760,-500.0,0.00041095,30]
[314016141,1707923558769,-500.0,0.00041095,30]
[314016142,1707923558778,-500.0,0.00041095,30]
[314016143,1707923558787,-500.0,0.00041095,30]
[314016144,1707923558796,-734.76,0.00041095,7]
[314016145,1707923558805,-379.94959235,0.00041095,30]
[314016146,1707923558815,-1574.35,0.00041095,7]
[314016147,1707923558824,-1145.4,0.00041095,7]
[314016148,1707923558833,-1361.9,0.00041095,7]
[314016149,1707923558842,-500.0,0.00041095,7]
[314016150,1707923558852,-500.0,0.00041095,7]
[314016151,1707923558861,-1000.98,0.00041095,7]
[314016152,1707923558870,-940.65,0.00041095,7]
[314016153,1707923558879,-819.39,0.00041095,7]
[314016154,1707923558888,-664.33,0.00041095,7]
[314016155,1707923558897,-574.43,0.00041095,7]
[314016156,1707923558907,-582.92,0.00041095,7]
[314016157,1707923558916,-500.0,0.00041095,7]
[314016158,1707923558926,-709.41,0.00041095,7]
[314016159,1707923558939,-523.78,0.00041095,7]
[314016160,1707923558949,-584.12,0.00041095,7]
[314016161,1707923558959,-629.64,0.00041095,7]
[314016162,1707923558969,-549.4,0.00041095,7]
[314016163,1707923558980,-1007.67,0.00041095,7]
[314016164,1707923558992,-2090.09,0.00041095,7]
[314016165,1707923559001,-964.24,0.00041095,7]
[314016166,1707923559010,-500.0,0.00041095,7]
[314016167,1707923559022,-500.0,0.00041095,7]
[314016168,1707923559031,-633.52,0.00041095,7]
[314016169,1707923559041,-500.0,0.00041095,7]
[314016170,1707923559050,-1464.25,0.00041095,7]
[314016171,1707923559061,-1470.37,0.00041095,7]
[314016172,1707923559072,-500.0,0.00041095,7]
[314016173,1707923559082,-608.25,0.00041095,7]
[314016174,1707923559091,-226.95065986,0.00041095,10]
[314016175,1707923559100,-760.6,0.00041095,7]
[314016176,1707923559109,-547.73,0.00041095,7]
[314016177,1707923559119,-1725.04,0.00041095,7]
[314016178,1707923559128,-554.39,0.00041095,7]
[314016179,1707923559138,-1351.58,0.00041095,7]
[314016180,1707923559147,-638.35,0.00041095,7]
[314016181,1707923559157,-500.0,0.00041095,7]
[314016182,1707923559167,-974.92,0.00041095,7]
[314016183,1707923559176,-619.45,0.00041095,7]
[314016184,1707923559188,-855.82,0.00041095,7]
[314016185,1707923559198,-161.0315169,0.00041095,7]
[314016186,1707923559207,-1157.75,0.00041095,7]
[314016187,1707923559217,-896.42,0.00041095,2]
[314016188,1707923559226,-500.0,0.00041095,7]
[314016189,1707923559235,-500.0,0.00041095,7]
[314016190,1707923559245,-544.41,0.00041095,7]
[314016191,1707923559254,-586.61,0.00041095,7]
[314016192,1707923559264,-500.0,0.00041095,20]
[314016193,1707923559273,-863.99,0.00041095,7]
[314016194,1707923559282,-500.0,0.00041095,7]
[314016195,1707923559292,-969.91,0.00041095,7]
[314016196,1707923559301,-500.0,0.00041095,7]
[314016197,1707923559311,-500.0,0.00041095,7]
[314016198,1707923559320,-597.96,0.00041095,2]
[314016199,1707923559330,-1237.52,0.00041095,7]
[314016200,1707923559339,-500.0,0.00041095,7]
[314016201,1707923559348,-500.0,0.00041095,7]
[314016202,1707923559358,-273.84236405,0.00041095,7]
[314016203,1707923559368,-686.48,0.00041095,7]
[314016204,1707923559377,-633.51,0.00041095,7]
[314016205,1707923559388,-500.0,0.00041095,7]
[314016206,1707923559397,-1310.86,0.00041095,7]
[314016207,1707923559406,-646.21,0.00041095,7]
[314016208,1707923559416,-643.81,0.00041095,7]
[314016209,1707923559425,-632.83,0.00041095,7]
[314016210,1707923559436,-1166.74,0.00041095,7]
[314016211,1707923559446,-500.0,0.00041095,7]
[314016212,1707923559455,-500.0,0.00041095,7]
[314016213,1707923559464,-778.72,0.00041095,7]
[314016214,1707923559473,-537.19,0.00041095,7]
[314016215,1707923559483,-522.92,0.00041095,7]
[314016216,1707923559493,-500.0,0.00041095,7]
[314016217,1707923559502,-839.23,0.00041095,7]
[314016218,1707923559512,-594.5891579,0.00041095,7]
[314016219,1707923559521,-500.0,0.00041095,7]
[314016220,1707923559531,-540.0,0.00041095,7]
[314016221,1707923559540,-860.82,0.00041095,7]
[314016222,1707923559550,-710.26,0.00041095,7]
[314016223,1707923559559,-500.0,0.00041095,7]
[314016224,1707923559569,-594.3,0.00041095,7]
[314016225,1707923559578,-1376.8,0.00041095,7]
[314016226,1707923559588,-563.0,0.00041095,7]
[314016227,1707923559597,-689.41,0.00041095,7]
[314016228,1707923559607,-1735.17,0.00041095,7]
[314016229,1707923559616,-1292.66,0.00041095,7]
[314016230,1707923559625,-2576.99,0.00041095,7]
[314016231,1707923559634,-500.0,0.00041095,7]
[314016232,1707923559644,-1880.82,0.00041095,7]
[314016233,1707923559653,-551.14,0.00041095,7]
[314016234,1707923559662,-1420.44,0.00041095,7]
[314016235,1707923559672,-713.29,0.00041095,7]
[314016236,1707923559681,-1306.77,0.00041095,7]
[314016237,1707923559695,-865.48,0.00041095,7]
[314016238,1707923559707,-500.0,0.00041095,7]
[314016239,1707923559716,-798.43,0.00041095,7]
[314016240,1707923559726,-792.44,0.00041095,7]
[314016241,1707923559735,-1762.73,0.00041095,7]
[314016242,1707923559744,-500.0,0.00041095,7]
[314016243,1707923559754,-566.85,0.00041095,7]
[314016244,1707923559763,-616.16,0.00041095,7]
[314016245,1707923559772,-156.91741056,0.00041095,7]
[314016246,1707923559782,-721.07,0.00041095,7]
[314016247,1707923559792,-500.0,0.00041095,7]
[314016248,1707923559801,-501.48,0.00041095,7]
[314016249,1707923559811,-1882.77,0.00041095,7]
[314016250,1707923559820,-804.17,0.00041095,7]
[314016251,1707923559830,-500.0,0.00041095,7]
[314016252,1707923559840,-1538.55,0.00041095,7]
[314016253,1707923559849,-555.1951571,0.00041095,7]
[314016254,1707923559860,-500.0,0.00041095,7]
[314016255,1707923559870,-747.44,0.00041095,7]
[314016256,1707923559879,-500.0,0.00041095,7]
[314016257,1707923559889,-1390.73,0.00041095,7]
[314016258,1707923559899,-1109.74,0.00041095,7]
[314016259,1707923559908,-632.23,0.00041095,7]
[314016260,1707923559919,-500.0,0.00041095,7]
[314016261,1707923559929,-886.7,0.00041095,7]
[314016262,1707923559942,-500.0,0.00041095,7]
[314016263,1707923559952,-582.6,0.00041095,7]
[314016264,1707923559961,-444.7,0.00041095,2]
[314016265,1707923559971,-500.0,0.00041095,7]
[314016266,1707923559983,-631.42,0.00041095,7]
[314016267,1707923559994,-1281.5,0.00041095,7]
[314016268,1707923560003,-500.0,0.00041095,7]
[314016269,1707923560012,-500.0,0.00041095,7]
[314016270,1707923560023,-1512.4,0.00041095,7]
[314016271,1707923560033,-669.64,0.00041095,7]
[314016272,1707923560042,-447.90020269,0.00041095,7]
[314016273,1707923560051,-2645.87,0.00041095,7]
[314016274,1707923560061,-178.5064151,0.00041095,7]
[314016275,1707923560072,-649.97,0.00041095,7]
[314016276,1707923560083,-9592.87,0.00041095,7]
[314016277,1707923560092,-6589.39,0.00041095,7]
[314016278,1707923560102,-537.36,0.00041095,7]
[314016279,1707923560111,-500.0,0.00041095,7]
[314016280,1707923560120,-1074.08,0.00041095,7]
[314016281,1707923560129,-712.86,0.00041095,7]
[314016282,1707923560138,-10349.22,0.00041095,7]
[314016283,1707923560147,-500.0,0.00041095,7]
[314016284,1707923560157,-2138.7,0.00041095,7]
[314016285,1707923560167,-2522.18,0.00041095,7]
[314016286,1707923560176,-1253.86,0.00041095,7]
[314016287,1707923560187,-500.0,0.00041095,7]
[314016288,1707923560197,-775.14,0.00041095,7]
[314016289,1707923560206,-5438.42,0.00041095,7]
[314016290,1707923560216,-617.22,0.00041095,7]
[314016291,1707923560225,-5792.28,0.00041095,7]
[314016292,1707923560235,-1042.95,0.00041095,7]
[314016293,1707923560244,-500.0,0.00041095,7]
[314016294,1707923560253,-1305.25,0.00041095,7]
[314016295,1707923560262,-1375.63,0.00041095,7]
[314016296,1707923560271,-500.0,0.00041095,7]
[314016297,1707923560281,-310.0725,0.00041095,2]
[314016298,1707923560291,-620.145,0.00041095,12]
[314016299,1707923560300,-930.2175,0.00041095,22]
[314016300,1707923560310,-1101.1,0.00041095,7]
[314016301,1707923560320,-1710.63,0.00041095,7]
[314016302,1707923560330,-1942.7,0.00041095,7]
[314016303,1707923560340,-3610.33,0.00041095,7]
[314016304,1707923560349,-656.71,0.00041095,7]
[314016305,1707923560358,-500.0,0.00041095,7]
[314016306,1707923560368,-1240.29,0.00041095,32]
[314016307,1707923560377,-1550.3625,0.00041095,42]
[314016308,1707923560387,-508.16,0.00041095,7]
[314016309,1707923560396,-1860.435,0.00041095,52]
[314016310,1707923560405,-2170.5075,0.00041095,62]
[314016311,1707923560414,-2480.58,0.00041095,72]
[314016312,1707923560424,-2790.6525,0.00041095,82]
[314016313,1707923560434,-3100.725,0.00041095,92]
[314016314,1707923560445,-3410.7975,0.00041095,102]
[314016315,1707923560455,-3720.87,0.00041095,112]
[314016316,1707923560464,-4030.9425,0.00041095,120]
[314016317,1707923560474,-1550.44840214,0.00041095,120]
[314016318,1707923560484,-500.0,0.00041095,7]
[314016319,1707923560494,-177.1509175,0.00041095,7]
[314016320,1707923560504,-2795.61,0.00041095,7]
[314016321,1707923560514,-13119.1,0.00041095,7]
[314016322,1707923560524,-4841.93,0.00041095,7]
[314016323,1707923560535,-789.06,0.00041095,7]
[314016324,1707923560545,-3238.15,0.00041095,7]
[314016325,1707923560555,-1486.36,0.00041095,7]
[314016326,1707923560565,-1122.77,0.00041095,7]
[314016327,1707923560575,-805.46,0.00041095,7]
[314016328,1707923560584,-5897.47,0.00041095,7]
[314016329,1707923560594,-664.49,0.00041095,7]
[314016330,1707923560603,-1313.77,0.00041095,7]
[314016331,1707923560613,-574.19,0.00041095,7]
[314016332,1707923560622,-1002.94482897,0.00041095,15]
[314016333,1707923560790,-11522.74,0.00041095,7]
[314016334,1707923560800,-532.94519318,0.00041095,7]
[314016335,1707923560810,-1290.94,0.00041095,7]
[314016336,1707923560819,-520.12,0.00041095,7]
[314016337,1707923560829,-1511.05,0.00041095,7]
[314016338,1707923560839,-879.95,0.00041095,7]
[314016339,1707923560848,-6267.83,0.00041095,7]
[314016340,1707923560858,-2830.38,0.00041095,7]
[314016341,1707923560868,-763.78,0.00041095,7]
[314016342,1707923560878,-1371.91,0.00041095,7]
[314016343,1707923560888,-626.07,0.00041095,7]
[314016344,1707923560897,-4425.6,0.00041095,7]
[314016345,1707923560907,-521.68239192,0.00041095,7]
[314016346,1707923560916,-986.33,0.00041095,7]
[314016347,1707923560925,-45639.2,0.00041095,7]
[314016348,1707923560936,-5389.09,0.00041095,7]
[314016349,1707923560945,-1240.03,0.00041095,7]
[314016350,1707923560955,-558.68,0.00041095,7]
[314016351,1707923560964,-4636.49,0.00041095,7]
[314016352,1707923560974,-329.56808868,0.00041095,7]
[314016353,1707923560984,-5227.83,0.00041095,7]
[314016354,1707923560997,-525.56,0.00041095,7]
[314016355,1707923561006,-2461.93,0.00041095,7]
[314016356,1707923561016,-682.43,0.00041095,7]
[314016357,1707923561025,-1031.1,0.00041095,7]
[314016358,1707923561035,-1060.11,0.00041095,7]
[314016359,1707923561045,-3757.3,0.00041095,7]
[314016360,1707923561054,-741.06,0.00041095,7]
[314016361,1707923561064,-777.41,0.00041095,7]
[314016362,1707923561076,-838.79,0.00041095,7]
[314016363,1707923561085,-1479.6,0.00041095,7]
[314016364,1707923561095,-866.09,0.00041095,7]
[314016365,1707923561104,-3315.92,0.00041095,7]
[314016366,1707923561113,-8419.92,0.00041095,7]
[314016367,1707923561123,-1669.6,0.00041095,7]
[314016368,1707923561132,-1425.19,0.00041095,7]
[314016369,1707923561142,-941.92,0.00041095,7]
[314016370,1707923561152,-500.0,0.00041095,7]
[314016371,1707923561161,-1068.3,0.00041095,7]
[314016372,1707923561171,-978.39,0.00041095,7]
[314016373,1707923561181,-1743.01,0.00041095,7]
[314016374,1707923561193,-500.0,0.00041095,7]
[314016375,1707923561203,-527.53,0.00041095,7]
[314016376,1707923561212,-2618.16,0.00041095,7]
[314016377,1707923561222,-5014.41,0.00041095,7]
[314016378,1707923561231,-16404.96,0.00041095,7]
[314016379,1707923561241,-1253.74,0.00041095,7]
[314016380,1707923561250,-1428.29,0.00041095,7]
[314016381,1707923561260,-12919.21,0.00041095,7]
[314016382,1707923561270,-1250.0,0.00041095,2]
[314016383,1707923561279,-500.0,0.00041095,7]
[314016384,1707923561290,-725.51,0.00041095,7]
[314016385,1707923561300,-564.17,0.00041095,7]
[314016386,1707923561309,-670.32,0.00041095,7]
[314016387,1707923561319,-608.21,0.00041095,7]
[314016388,1707923561330,-3982.22,0.00041095,7]
[314016389,1707923561339,-15886.12,0.00041095,7]
[314016390,1707923561349,-2293.57,0.00041095,7]
[314016391,1707923561359,-1912.2,0.00041095,7]
[314016392,1707923561368,-1078.52,0.00041095,7]
[314016393,1707923561377,-1675.86,0.00041095,7]
[314016394,1707923561387,-4682.24,0.00041095,7]
[314016395,1707923561397,-998.25,0.00041095,7]
[314016396,1707923561407,-1548.99,0.00041095,7]
[314016397,1707923561416,-1678.3,0.00041095,7]
[314016398,1707923561425,-2172.47,0.00041095,7]
[314016399,1707923561436,-4636.94,0.00041095,7]
[314016400,1707923561450,-905.58,0.00041095,7]
[314016401,1707923561460,-3347.59,0.00041095,7]
[314016402,1707923561469,-24853.72,0.00041095,7]
[314016403,1707923561479,-2682.03,0.00041095,7]
[314016404,1707923561489,-500.0,0.00041095,7]
[314016405,1707923561498,-741.23,0.00041095,7]
[314016406,1707923561508,-504.17,0.00041095,7]
[314016407,1707923561518,-4661.42,0.00041095,7]
[314016408,1707923561527,-644.02,0.00041095,7]
[314016409,1707923561537,-1447.91,0.00041095,7]
[314016410,1707923561547,-870.17,0.00041095,7]
[314016411,1707923561557,-575.73,0.00041095,2]
[314016412,1707923561567,-513.51,0.00041095,7]
[314016413,1707923561577,-13772.64,0.00041095,7]
[314016414,1707923561586,-734.67,0.00041095,7]
[314016415,1707923561596,-861.53,0.00041095,7]
[314016416,1707923561608,-4963.65,0.00041095,7]
[314016417,1707923561617,-4015.51,0.00041095,7]
[314016418,1707923561627,-1647.66,0.00041095,7]
[314016419,1707923561637,-500.0,0.00041095,7]
[314016420,1707923561646,-834.17,0.00041095,7]
[314016421,1707923561655,-1651.62,0.00041095,7]
[314016422,1707923561664,-1367.71,0.00041095,7]
[314016423,1707923561674,-705.01,0.00041095,7]
[314016424,1707923561683,-738.43,0.00041095,7]
[314016425,1707923561694,-500.0,0.00041095,7]
[314016426,1707923561704,-1232.76,0.00041095,7]
[314016427,1707923561713,-2624.93,0.00041095,7]
[314016428,1707923561722,-1605.94,0.00041095,7]
[314016429,1707923561732,-1397.98,0.00041095,7]
[314016430,1707923561741,-6303.05,0.00041095,7]
[314016431,1707923561750,-3882.2,0.00041095,7]
[314016432,1707923561759,-1424.26,0.00041095,7]
[314016433,1707923561768,-6796.38,0.00041095,7]
[314016434,1707923561777,-1430.04,0.00041095,7]
[314016435,1707923561786,-9115.46,0.00041095,7]
[314016436,1707923561795,-876.71,0.00041095,7]
[314016437,1707923561804,-6722.84,0.00041095,7]
[314016438,1707923561814,-1159.69,0.00041095,7]
[314016439,1707923561823,-1566.04,0.00041095,7]
[314016440,1707923561833,-5625.73,0.00041095,7]
[314016441,1707923561842,-742.15,0.00041095,7]
[314016442,1707923561851,-500.0,0.00041095,7]
[314016443,1707923561861,-1074.84,0.00041095,7]
[314016444,1707923561870,-21955.42,0.00041095,7]
[314016445,1707923561879,-1224.55,0.00041095,7]
[314016446,1707923561888,-10536.73,0.00041095,7]
[314016447,1707923561898,-500.0,0.00041095,7]
[314016448,1707923561908,-3349.17,0.00041095,7]
[314016449,1707923561917,-1141.82,0.00041095,7]
[314016450,1707923561926,-4103.23,0.00041095,7]
[314016451,1707923561936,-15646.43,0.00041095,7]
[314016452,1707923561946,-500.0,0.00041095,7]
[314016453,1707923561955,-580.0,0.00041095,7]
[314016454,1707923561965,-888.9,0.00041095,7]
[314016455,1707923561990,-849.7,0.00041095,7]
[314016456,1707923562005,-1131.16,0.00041095,7]
[314016457,1707923562022,-970.39,0.00041095,7]
[314016458,1707923562040,-1000.0,0.00041095,30]
[314016459,1707923562057,-2458.64,0.00041095,7]
[314016460,1707923562074,-1032.81,0.00041095,7]
[314016461,1707923562090,-940.22,0.00041095,7]
[314016462,1707923562108,-845.63,0.00041095,7]
[314016463,1707923562125,-655.93,0.00041095,7]
[314016464,1707923562143,-861.05,0.00041095,7]
[314016465,1707923562163,-2020.71,0.00041095,7]
[314016466,1707923562178,-4353.77,0.00041095,7]
[314016467,1707923562193,-2136.24,0.00041095,7]
[314016468,1707923562209,-500.0,0.00041095,7]
[314016469,1707923562223,-1868.07,0.00041095,7]
[314016470,1707923562241,-3468.32,0.00041095,7]
[314016471,1707923562255,-1175.69,0.00041095,7]
[314016472,1707923562270,-4307.44,0.00041095,7]
[314016473,1707923562286,-2131.96,0.00041095,7]
[314016474,1707923562300,-4133.28,0.00041095,7]
[314016475,1707923562315,-3754.14,0.00041095,7]
[314016476,1707923562330,-500.0,0.00041095,7]
[314016477,1707923562345,-1200.28,0.00041095,7]
[314016478,1707923562359,-551.94,0.00041095,7]
[314016479,1707923562374,-2643.73,0.00041095,7]
[314016480,1707923562389,-1428.62,0.00041095,7]
[314016481,1707923562404,-1293.93,0.00041095,7]
[314016482,1707923562419,-4255.94,0.00041095,7]
[314016483,1707923562434,-1073.43,0.00041095,7]
[314016484,1707923562449,-1154.7,0.00041095,7]
[314016485,1707923562464,-1681.08,0.00041095,7]
[314016486,1707923562478,-749.27,0.00041095,7]
[314016487,1707923562492,-696.07,0.00041095,7]
[314016488,1707923562507,-1992.67,0.00041095,7]
[314016489,1707923562523,-1960.66,0.00041095,7]
[314016490,1707923562537,-4598.11,0.00041095,7]
[314016491,1707923562551,-2148.61,0.00041095,7]
[314016492,1707923562566,-776.5,0.00041095,7]
[314016493,1707923562580,-876.47,0.00041095,7]
[314016494,1707923562594,-759.83,0.00041095,7]
[314016495,1707923562608,-907.63,0.00041095,7]
[314016496,1707923562622,-1863.83,0.00041095,7]
[314016497,1707923562637,-22229.37,0.00041095,7]
[314016498,1707923562651,-2233.48,0.00041095,7]
[314016499,1707923562666,-1407.78,0.00041095,7]
[314016500,1707923562680,-2807.7,0.00041095,7]
[314016501,1707923562696,-500.0,0.00041095,7]
[314016502,1707923562710,-749.48,0.00041095,7]
[314016503,1707923562725,-770.43,0.00041095,7]
[314016504,1707923562740,-500.0,0.00041095,7]
[314016505,1707923562754,-4409.87,0.00041095,7]
[314016506,1707923562769,-940.66,0.00041095,7]
[314016507,1707923562784,-1582.96,0.00041095,7]
[314016508,1707923562800,-778.24,0.00041095,7]
[314016509,1707923562815,-819.98,0.00041095,7]
[314016510,1707923562830,-501.61,0.00041095,7]
[314016511,1707923562845,-150.9,0.00041096,2]
[314016512,1707923562858,-253.93516149,0.00041096,2]
[314016513,1707923562873,-183.0,0.00041096,2]
[314016514,1707923562888,-457.84,0.00041096,2]
[314016515,1707923562903,-2400.0,0.00041096,7]
[314016516,1707923562917,-600.0,0.00041096,14]
[314016517,1707923562931,-600.0,0.00041096,14]
[314016518,1707923562948,-600.0,0.00041096,14]
[314016519,1707923562963,-600.0,0.00041096,14]
[314016520,1707923562979,-600.0,0.00041096,14]
[314016521,1707923562996,-600.0,0.00041096,14]
[314016522,1707923563012,-600.0,0.00041096,14]
[314016523,1707923563028,-600.0,0.00041096,14]
[314016524,1707923563044,-600.0,0.00041096,14]
[314016525,1707923563059,-600.0,0.00041096,14]
[314016526,1707923563074,-600.0,0.00041096,14]
[314016527,1707923563090,-600.0,0.00041096,14]
[314016528,1707923563104,-600.0,0.00041096,14]
[314016529,1707923563119,-600.0,0.00041096,14]
[314016530,1707923563134,-600.0,0.00041096,14]
[314016531,1707923563149,-600.0,0.00041096,14]
[314016532,1707923563164,-600.0,0.00041096,14]
[314016533,1707923563179,-600.0,0.00041096,14]
[314016534,1707923563196,-600.0,0.00041096,14]
[314016535,1707923563211,-600.0,0.00041096,14]
[314016536,1707923563226,-600.0,0.00041096,14]
[314016537,1707923563240,-600.0,0.00041096,14]
[314016538,1707923563254,-600.0,0.00041096,14]
[314016539,1707923563268,-600.0,0.00041096,14]
[314016540,1707923563283,-600.0,0.00041096,14]
[314016541,1707923563297,-529.498567,0.00041096,14]
[314016542,1707923563312,-375.0,0.000411,7]
[314016543,1707923563326,-2421.67,0.000411,2]
[314016544,1707923563339,-2421.67,0.000411,2]
[314016545,1707923563354,-2421.67,0.000411,2]
[314016546,1707923563368,-2421.67,0.000411,2]
[314016547,1707923563383,-2421.67,0.000411,2]
[314016548,1707923563397,-2421.67,0.000411,2]
[314016549,1707923563412,-2421.67,0.000411,2]
[314016550,1707923563426,-2421.67,0.000411,2]
[314016551,1707923563440,-2421.67,0.000411,2]
[314016552,1707923563453,-2421.67,0.000411,2]
[314016553,1707923563467,-172.87855,0.00041107,30]
[314016554,1707923563482,-1532.39478887,0.00041111,7]
[314016555,1707923563495,-631.18465979,0.00041111,7]
[314016556,1707923563510,-996.19465956,0.00041111,7]
[314016557,1707923563524,-1222.41591722,0.00041111,7]
[314016558,1707923563538,-1120.06673539,0.00041111,7]
[314016559,1707923563553,-151.44662462,0.00041114,30]
[314016560,1707923563567,-657.90689477,0.00041115,30]
[314016561,1707923563581,-657.90689477,0.00041131,30]
[314016562,1707923563595,-157.08789767,0.00041137,30]
[314016563,1707923563610,-150.0,0.00041137,30]
[314016564,1707923563624,-151.021419,0.00041148,19]
[314016565,1707923563639,-164.02246197,0.00041149,30]
[314016566,1707923563657,-358.85958455,0.00041163,30]
[314016567,1707923563671,-5009.029731,0.0004117,2]
[314016568,1707923563688,-153.271908,0.00041175,30]
[314016569,1707923563703,-154.65466196,0.00041189,30]
[314016570,1707923563717,-1000.0,0.000412,30]
[314016571,1707923563731,-4085.29,0.000412,7]
[314016572,1707923563746,-235.13880492,0.000412,30]
[314016573,1707923563761,-1000.0,0.000412,5]
[314016574,1707923563776,-150.0,0.00041205,30]
[314016575,1707923563790,-166.66666666,0.00041214,30]
[314016576,1707923564031,-154.03006511,0.00041217,30]
[314016577,1707923564041,-159.695535,0.00041227,30]
[314016578,1707923564051,-151.196457,0.00041227,30]
[314016579,1707923564060,-150.0,0.00041227,3]
[314016580,1707923564070,-150.0,0.00041227,3]
[314016581,1707923564080,-239.29468169,0.00041231,30]
[314016582,1707923564090,-166.66666666,0.00041244,30]
[314016583,1707923564099,-151.44662462,0.00041246,30]
[314016584,1707923564109,-235.13880492,0.00041267,30]
[314016585,1707923564119,-354.81402348,0.00041271,30]
[314016586,1707923564128,-358.85958455,0.00041273,30]
[314016587,1707923564138,-154.03006511,0.00041277,30]
[314016588,1707923564147,-358.85958455,0.00041278,30]
[314016589,1707923564157,-235.13880492,0.00041286,30]
[314016590,1707923564166,-157.0,0.00041288,7]
[314016591,1707923564176,-289.0,0.00041288,7]
[314016592,1707923564185,-3312.13,0.000413,7]
[314016593,1707923564197,-151.44662462,0.00041307,30]
[314016594,1707923564206,-235.13880492,0.0004134,30]
[314016595,1707923564216,-358.85958455,0.00041344,30]
[314016596,1707923564225,-153.271908,0.00041353,30]
[314016597,1707923564234,-500.0,0.00041369,31]
[314016598,1707923564243,-500.0,0.00041369,30]
[314016599,1707923564253,-500.0,0.00041369,30]
[314016600,1707923564262,-500.0,0.00041369,7]
[314016601,1707923564272,-636.47,0.00041369,7]
[314016602,1707923564282,-968.71,0.00041369,7]
[314016603,1707923564292,-500.0,0.00041369,7]
[314016604,1707923564302,-500.0,0.00041369,7]
[314016605,1707923564311,-500.0,0.00041369,7]
[314016606,1707923564320,-500.0,0.00041369,7]
[314016607,1707923564331,-536.83,0.00041369,7]
[314016608,1707923564341,-511.55,0.00041369,7]
[314016609,1707923564352,-564.0,0.00041369,7]
[314016610,1707923564366,-609.56953901,0.00041369,7]
[314016611,1707923564376,-1240.83,0.00041369,7]
[314016612,1707923564386,-1171.11,0.00041369,7]
[314016613,1707923564396,-564.08,0.00041369,7]
[314016614,1707923564405,-1281.17,0.00041369,7]
[314016615,1707923564414,-1147.23,0.00041369,7]
[314016616,1707923564423,-500.0,0.00041369,7]
[314016617,1707923564433,-568.35,0.00041369,7]
[314016618,1707923564448,-1433.14,0.00041369,7]
[314016619,1707923564458,-530.02,0.00041369,7]
[314016620,1707923564469,-1489.83,0.00041369,7]
[314016621,1707923564478,-528.29,0.00041369,7]
[314016622,1707923564489,-1024.97,0.00041369,7]
[314016623,1707923564499,-569.56,0.00041369,7]
[314016624,1707923564509,-785.09,0.00041369,7]
[314016625,1707923564519,-1152.13,0.00041369,7]
[314016626,1707923564528,-1376.22,0.00041369,2]
[314016627,1707923564538,-500.0,0.00041369,7]
[314016628,1707923564547,-770.95,0.00041369,7]
[314016629,1707923564556,-1599.92,0.00041369,7]
[314016630,1707923564566,-500.0,0.00041369,7]
[314016631,1707923564575,-1153.23,0.00041369,7]
[314016632,1707923564584,-1045.09,0.00041369,7]
[314016633,1707923564594,-774.56,0.00041369,7]
[314016634,1707923564603,-1031.35,0.00041369,7]